Cogmind - Beta 17 @@@ ROGUE MODE // 2026.07.26 @ 17:05:03 Player: gorb Result: Destroyed by Y-45 Defender with Beam Rifle Performance ------------- Evolutions (1) 500 Regions Visited (4) 800 Robots Destroyed (12) 60 Value Destroyed (242) 242 Prototype IDs (0) 0 Alien Tech Used (0) 0 Bonus (0) 0 TOTAL SCORE: 1602 Bonus ------- None Cogmind --------- Core Integrity 0/400 Matter 181/300 Energy 100/100 System Corruption 0% Temperature Cool (9) Movement Core (100) Ox1 Location -9/Storage Parts ------- > --- POWER (1) -------- (None) > --- PROPULSION (4) --- (None) > --- UTILITY (2) ------ Small Storage Unit > --- WEAPON (2) ------- (None) > --- INVENTORY (8) ---- Improved Terrain Scanner Light Armor Plating Drone Bay (2/2) Peak State ------------ > --- POWER ------------ Light Ion Engine > --- PROPULSION ------- Flight Unit Flight Unit Flight Unit Flight Unit > --- UTILITY ---------- Small Storage Unit Weight Redist. System > --- WEAPON ----------- Light Assault Rifle Light Assault Rifle > --- INVENTORY -------- Light Ion Engine Light Ion Engine Compact Wheel Compact Wheel Improved Terrain Scanner Light Armor Plating Drone Bay Assault Rifle [Rating: 11] Favorites ----------- Power Light Ion Engine Engine Light Ion Engine Propulsion Flight Unit Leg Aluminum Leg Wheel Compact Wheel Flight Unit Flight Unit Utility Small Storage Unit Device Weight Redist. System Storage Small Storage Unit Weapon Light Assault Rifle Ballistic Gun Light Assault Rifle Build | -11 -10 -10 -9 -9 ------- Run | Yrd Mat Min Mat Sto Slots Evolved 2 | . . . 2 . Power . | . . . . . Propulsion 2 | . . . 2 . Utility . | . . . . . Weapon . | . . . . . Parts Attached 18 | 8 5 . 2 3 Power 4 | 1 1 . . 2 Engine 4 | 1 1 . . 2 Core . | . . . . . Reactor . | . . . . . Propulsion 7 | 3 2 . 2 . Treads . | . . . . . Leg 1 | 1 . . . . Wheel 2 | 2 . . . . Hover . | . . . . . Flight 4 | . 2 . 2 . Utility 3 | 2 1 . . . Device 2 | 1 1 . . . Storage 1 | 1 . . . . Processor . | . . . . . Hackware . | . . . . . Protection . | . . . . . Artifact . | . . . . . Weapon 4 | 2 1 . . 1 Energy Gun . | . . . . . Energy Cannon . | . . . . . Ballistic Gun 4 | 2 1 . . 1 Ballistic Cannon . | . . . . . Launcher . | . . . . . Special Weapon . | . . . . . Impact Weapon . | . . . . . Slashing Weapon . | . . . . . Piercing Weapon . | . . . . . Special Melee Weapon . | . . . . . Unidentified Prototypes . | . . . . . Parts Lost 13 | . . . . 13 Power 3 | . . . . 3 Propulsion 6 | . . . . 6 Utility 1 | . . . . 1 Weapon 3 | . . . . 3 Highest Loss Streak 13 | . . . . 13 To Critical Strikes . | . . . . . Average Backups 5 | 3 5 8 6 6 Power 1 | . 1 2 2 1 Propulsion 1 | 1 2 4 2 1 Utility 1 | . . 2 2 2 Weapon . | . . . . . Tool/Special . | . . . . . Unused Backups 3 | . 2 . . 1 Power . | . . . . . Propulsion 1 | . 1 . . . Utility 2 | . 1 . . 1 Weapon . | . . . . . Tool/Special . | . . . . . Average Slot Usage (%) 89 | . 99 100 97 76 Engine 11 | . 14 14 11 9 Wheel 5 | . 10 . . 2 Flight 23 | . 17 28 41 24 Device 12 | . 14 14 11 11 Storage 12 | . 14 14 11 11 Ballistic Gun 22 | . 27 28 22 17 Peak Build Rating 11 | 9 9 9 10 11 Average Rating 7 | 4 8 9 9 8 On Entrance 7 | . 9 9 9 10 Avg Prop Armor Cover (%) 3 | . . . 3 3 Naked Turns . | . . . . . Heaviest Build 14 | 14 14 10 10 10 Greatest Support 32 | 32 32 14 22 18 Greatest Overweight (x) 1 | . 1 . . . Average Overweight (x) . | . . . . . Largest Inventory Capacity 8 | 8 8 8 8 8 Average Capacity 7 | 6 8 8 8 8 Most Carried 8 | 5 8 8 7 8 Average Carried 5 | 3 5 8 6 6 Final Capacity 8 | 8 8 8 8 8 Final Carried 8 | 3 8 8 7 3 Class Distribution -------------------- 79% | Mutant 20% | Scavenger-Mutant Dominant Class ---------------- Mutant | -10/Materials Mutant | -10/Mines Scavenger-Mutant | -9/Materials Mutant | -9/Storage Resources | -11 -10 -10 -9 -9 ----------- Run | Yrd Mat Min Mat Sto Matter Collected 388 | 309 43 . . 36 Remotely . | . . . . . Salvage Created 368 | 72 43 . . 253 Parts 26 | 3 7 . . 16 Haulers Intercepted . | . . . . . Recyclers Shooed . | . . . . . Parts Field Recycled . | . . . . . Retrieved Matter . | . . . . . Parts Self-Destructed . | . . . . . Prevented . | . . . . . Parts Restored . | . . . . . Kills | -11 -10 -10 -9 -9 ------- Run | Yrd Mat Min Mat Sto Combat Hostiles Destroyed 10 | . 3 . . 7 Guns 10 | . 3 . . 7 Classes Destroyed 5 | 2 1 . . 2 Tunneler 1 | 1 . . . . Recycler 1 | 1 . . . . Swarmer 6 | . 3 . . 3 Grunt 1 | . . . . 1 Sentry 3 | . . . . 3 Best Kill Streak 6 | 1 3 . . 6 Combat Bots Only 6 | . 3 . . 6 Max Kills in Single Turn 1 | 1 1 . . 1 Gunslinging . | . . . . . Exploded . | . . . . . Melee . | . . . . . Uniques/NPCs Destroyed . | . . . . . Combat | -11 -10 -10 -9 -9 -------- Run | Yrd Mat Min Mat Sto Hostile Shots Fired 140 | . 17 15 . 108 Missed 39 | . 6 8 . 25 Hits 101 | . 11 7 . 83 Projectile 101 | . 11 7 . 83 Critical Strikes 5 | . . . . 5 Damage Taken 1180 | . 90 60 . 1030 Core 457 | . 35 16 . 406 Absorbed by Shields . | . . . . . Core Remaining (%) 89 | 100 . 79 . . Volleys Fired 58 | 12 7 1 . 38 Largest 2 | 2 2 2 . 2 Hottest 40 | 40 40 40 . 40 Shots Fired 96 | 24 14 2 . 56 Gun 96 | 24 14 2 . 56 Cannon . | . . . . . Launcher . | . . . . . Special . | . . . . . Kinetic 96 | 24 14 2 . 56 Thermal . | . . . . . Explosive . | . . . . . Electromagnetic . | . . . . . Robot Hit Streak 28 | 5 3 3 . 28 Robot Miss Streak 4 | 2 4 . . 1 Penetration Max . | . . . . . Secondary Targets 3 | . 1 . . 2 Max Gunslinging Chain 1 | . 1 . . 1 Shots Hit Robots 71 | 15 5 2 . 49 Core Hits 27 | 5 4 1 . 17 Critical Kills . | . . . . . Critical Parts Destroyed . | . . . . . Critical Strikes . | . . . . . Melee Attacks . | . . . . . Impact . | . . . . . Slashing . | . . . . . Piercing . | . . . . . Sneak Attacks . | . . . . . Combat Hostiles . | . . . . . Follow-up Attacks . | . . . . . Damage Inflicted 666 | 165 56 17 . 428 Guns 666 | 165 56 17 . 428 Cannons . | . . . . . Explosions . | . . . . . Melee . | . . . . . Ramming . | . . . . . Kinetic 666 | 165 56 17 . 428 Thermal . | . . . . . Explosive . | . . . . . Electromagnetic . | . . . . . Impact . | . . . . . Slashing . | . . . . . Piercing . | . . . . . Highest Corruption . | . . . . . Average Corruption . | . . . . . Corruption Purged . | . . . . . Corruption Blocked . | . . . . . Overload Shots . | . . . . . Overflow Damage . | . . . . . Projectiles . | . . . . . Explosions . | . . . . . Melee . | . . . . . Knockbacks . | . . . . . Impact . | . . . . . Kinetic . | . . . . . Secondary . | . . . . . Self-Inflicted Damage . | . . . . . Shots . | . . . . . Rammed . | . . . . . Targets Rammed . | . . . . . Kicked . | . . . . . Crushed . | . . . . . Highest Temperature 26 | . . 4 . 26 Average Temperature 9 | . . 3 . 9 Received Heat Transfer 384 | . . . . 384 Siege Activations . | . . . . . Martial Activations . | . . . . . Shielding Activations . | . . . . . Robots Disrupted . | . . . . . Combat Hostiles . | . . . . . Robots Corrupted . | . . . . . Combat Hostiles . | . . . . . Parts Fried . | . . . . . Impact Corruptions . | . . . . . Robots Melted . | . . . . . Combat Hostiles . | . . . . . Parts Melted . | . . . . . Heat Transferred . | . . . . . Parts Sabotaged . | . . . . . Parts Stolen . | . . . . . Parts Stripped . | . . . . . Power Chain Reactions . | . . . . . Alert | -11 -10 -10 -9 -9 ------- Run | Yrd Mat Min Mat Sto Maximum Alert Level 1 | . . . . 1 Low Security (%) 98 | 100 100 100 100 96 Level 1 1 | . . . . 3 Level 2 . | . . . . . Level 3 . | . . . . . Level 4 . | . . . . . Level 5 . | . . . . . High Security . | . . . . . Max Security . | . . . . . Peak Influence 200 | 5 60 27 10 200 Initial 15 | . . 15 10 . Average 51 | . 27 26 7 115 Influence Increases 501 | 10 139 12 . 340 Destroy 0b10 Robot/C 200 | . 60 . . 140 Destroy 0b10 Robot/NC 10 | 10 . . . . Destroy Leader 50 | . 10 . . 40 Successful Hack 31 | . 9 12 . 10 Partial Spotted 135 | . 15 . . 120 Lose Combat Pursuer 75 | . 45 . . 30 Influence Decreases 381 | 10 100 24 27 220 Entered New Map 41 | . . 24 17 . Time Decay 180 | 10 70 . 10 90 Lost Part 130 | . . . . 130 Purge Threat 30 | . 30 . . . Squads Dispatched 1 | . . . . 1 Investigation . | . . . . . Extermination . | . . . . . Reinforcement . | . . . . . Assault . | . . . . . Garrison 1 | . . . . 1 Intercept . | . . . . . Searches Triggered . | . . . . . Construction Impeded . | . . . . . Haulers Reinforced . | . . . . . Active Scanning Responses . | . . . . . Cargo Convoy Interrupts . | . . . . . Stealth | -11 -10 -10 -9 -9 --------- Run | Yrd Mat Min Mat Sto Distress Signals 2 | . 2 . . . Communications Jammed . | . . . . . Distress Signals . | . . . . . Times Spotted 29 | . 7 8 . 14 Peak Tracking Total 8 | . 5 8 . 8 Tactical Retreats 3 | . 2 . . 1 Traps | -11 -10 -10 -9 -9 ------- Run | Yrd Mat Min Mat Sto Traps Triggered . | . . . . . Indirectly . | . . . . . Trap Hack Attempts . | . . . . . Triggered . | . . . . . Disarmed . | . . . . . Reprogrammed . | . . . . . Reused . | . . . . . Traps Extracted . | . . . . . Installed . | . . . . . Triggered . | . . . . . Machines | -11 -10 -10 -9 -9 ---------- Run | Yrd Mat Min Mat Sto Machines Disabled . | . . . . . Max in Single Turn . | . . . . . Machines Repaired . | . . . . . Machines Dismantled . | . . . . . Machines Sabotaged . | . . . . . Overloaded Fab Kills . | . . . . . Hacking | -11 -10 -10 -9 -9 --------- Run | Yrd Mat Min Mat Sto Machines Accessed 8 | . 3 1 . 4 Terminals 8 | . 3 1 . 4 Fabricators . | . . . . . Repair Stations . | . . . . . Recycling Units . | . . . . . Scanalyzers . | . . . . . Garrison Access . | . . . . . Total Hacks 17 | . 7 2 . 8 Successful 13 | . 4 2 . 7 Failed 4 | . 3 . . 1 Catastrophic 1 | . . . . 1 Database Lockouts . | . . . . . Manual 11 | . 6 . . 5 Terminals 17 | . 7 2 . 8 Fabricators . | . . . . . Repair Stations . | . . . . . Recycling Units . | . . . . . Scanalyzers . | . . . . . Garrison Access . | . . . . . Terminal Hacks 10 | . 2 2 . 6 Open Door 1 | . . . . 1 Branch Access Points 1 | . . . . 1 Alert Level 2 | . . . . 2 Unreport Threat 1 | . 1 . . . Dispatch Records 1 | . . . . 1 Recall Investigation 1 | . . 1 . . Hauler Manifests 1 | . . . . 1 Zone Layout 2 | . 1 1 . . Fabricator Hacks . | . . . . . Repair Station Hacks . | . . . . . Recycling Unit Hacks . | . . . . . Scanalyzer . | . . . . . Garrison Access Hacks . | . . . . . Unauthorized Hacks 3 | . 2 . . 1 Terminals 3 | . 2 . . 1 Botnet 3 | . 2 . . 1 Fabricators . | . . . . . Repair Stations . | . . . . . Recycling Units . | . . . . . Scanalyzers . | . . . . . Garrison Access . | . . . . . Data Cores Recovered . | . . . . . Used . | . . . . . Hacking Detections 7 | . 2 1 . 4 Full Trace Events . | . . . . . Feedback Events . | . . . . . Feedback Blocked . | . . . . . Robot Schematics Acquired . | . . . . . Robots Built . | . . . . . Authchips . | . . . . . Time . | . . . . . Total Robot Build Rating . | . . . . . Part Schematics Acquired . | . . . . . Parts Built . | . . . . . Authchips . | . . . . . Time . | . . . . . Total Part Build Rating . | . . . . . Part Studies Acquired . | . . . . . Parts Repaired . | . . . . . Time . | . . . . . Parts Recycled . | . . . . . Recycled Matter . | . . . . . Retrieved Matter . | . . . . . Retrieved Components . | . . . . . Parts Scanalyzed . | . . . . . Part Schematics Acquired . | . . . . . Parts Damaged . | . . . . . Bothacking | -11 -10 -10 -9 -9 ------------ Run | Yrd Mat Min Mat Sto Used RIF Installer . | . . . . . Robots Hacked . | . . . . . Non-combat . | . . . . . Combat . | . . . . . Robot Hacks Applied . | . . . . . Relay Couplers Released . | . . . . . Fabnet Peak Effective % . | . . . . . Robots Rewired . | . . . . . Allies Hacked . | . . . . . Hacks Repelled . | . . . . . Allies | -11 -10 -10 -9 -9 -------- Run | Yrd Mat Min Mat Sto Total Allies . | . . . . . Largest Group . | . . . . . Highest-Rated Group . | . . . . . Highest-Rated Ally . | . . . . . Total Orders . | . . . . . Ally Attacks . | . . . . . Total Damage . | . . . . . Kills . | . . . . . Allies Corrupted . | . . . . . Allies Melted . | . . . . . Intel | -11 -10 -10 -9 -9 ------- Run | Yrd Mat Min Mat Sto Active Infowar (turns) 100 | 11 89 . . . Terrain 100 | 11 89 . . . Robot Analysis Total . | . . . . . Derelict Logs Recovered . | . . . . . Drone Launches . | . . . . . Drone Recoveries . | . . . . . Exploration | -11 -10 -10 -9 -9 ------------- Run | Yrd Mat Min Mat Sto Turns Passed 522 | 113 182 19 27 181 Spaces Moved 589 | 69 217 36 58 209 Core 15 | 15 . . . . Treads . | . . . . . Legs 4 | 4 . . . . Wheels 87 | 50 37 . . . Hover . | . . . . . Flight 483 | . 180 36 58 209 Fastest Speed 31 | 50 37 37 31 34 Average Speed 47 | 90 53 37 33 34 Slowest Speed 120 | 120 117 37 34 40 Overloaded Moves . | . . . . . Propulsion Burnouts . | . . . . . Robots Hopped 3 | . . 2 . 1 Potential Cave-ins . | . . . . . Cave-ins Triggered . | . . . . . Exploration Rate (%) 18 | 4 37 11 6 34 Regions Visited 4 Branch Regions 2 Pre-discovered Areas . | . . . . . Known Exits Taken . | . . . . . Unknown Exits Taken 4 | 1 1 1 1 . Scrap Searched . | . . . . . Spaces Dug . | . . . . . Terrain Destroyed . | . . . . . Melee . | . . . . . Projectile . | . . . . . AOE . | . . . . . Terrain Rammed . | . . . . . Walls Destroyed . | . . . . . Machines Disabled . | . . . . . Actions | -11 -10 -10 -9 -9 --------- Run | Yrd Mat Min Mat Sto Total 740 | 97 271 37 64 271 Wait 50 | . 24 3 4 19 Move 579 | 68 216 31 57 207 Hop 3 | . . 2 . 1 Pick Up 20 | 8 10 . 1 1 Fast Attach 3 | 3 . . . . Attach 16 | 5 4 . 2 5 Detach 2 | . 2 . . . Swap 3 | . 3 . . . Drop 6 | 1 5 . . . Fire 58 | 12 7 1 . 38 Melee . | . . . . . Ram . | . . . . . Kick . | . . . . . Crush . | . . . . . Escape Stasis . | . . . . . Rewire . | . . . . . Trap . | . . . . . Miscellaneous . | . . . . . Route ------- -11/Scrapyard -10/Materials -10/Mines -9/Materials -9/Storage (discovered 1 exit: Rec) History --------- Turn | Location | Event 16 | -11/Scrapyard | Discovered new exit (range 15) 114 | -11/Scrapyard | Entered Materials 291 | -10/Materials | Discovered new exit (range 16) 296 | -10/Materials | Entered Mines 308 | -10/Mines | Build established: Mutant 309 | -10/Mines | Discovered new exit (range 7) 315 | -10/Mines | Entered Materials 315 | -9/Materials | Evolved 2 slots: Propulsion x2 338 | -9/Materials | Discovered new exit (range 10) 342 | -9/Materials | Entered Storage 353 | -9/Storage | Identified exit to Recycling 450 | -9/Storage | Garrison activated, responded to threat 503 | -9/Storage | Core integrity fell below 50% 518 | -9/Storage | Core integrity fell below 20% 523 | -9/Storage | Destroyed by Y-45 Defender with Beam Rifle Last Messages --------------- K-01 Serf collects debris. R-06 Scavenger collects Flight Unit. R-06 Scavenger collects Lgt. Armor Plating. R-06 Scavenger collects Lgt. Assault Rifle. R-06 Scavenger collects Lgt. Ion Engine. R-06 Scavenger collects Flight Unit. Critical hit (Burn: +37). R-06 Scavenger collects Flight Unit. Critical hit (Burn: +37). Lgt. Assault Rifle destroyed. Lgt. Ion Engine destroyed. Com. Wheel destroyed. Critical hit (Burn: +37). Y-45 Defender destroyed. Lgt. Ion Engine destroyed. Assault Rifle destroyed. Com. Wheel destroyed. R-06 Scavenger collects Imp. Ion Engine. Weight Redist. System destroyed. R-06 Scavenger collects Flight Unit. Map ----- +----------------------------------------------------+ | ????????????????##???????????????????? | | ??????????????#?# ##?####????????????? | | ??????????????# ? #????????????? | | ??????????????# " """ #????????????? | | ??????????????# "G" """ ###??????????? | | ??????????????# " " """ ""#??????????? | | ??????????????# T"???????????? | | ???????????????? "????????????? | | ?????????????????? #????????????? | | ???????????????????? ###??????????? | | ?????# ############/##T#"?????????? | | ?????# "?>???????? | | ?????# "?????????? | | ??????????##+#######/######"?????????? | | ?????????????????# #?????????????? | | ?????????????????# #?????????????? | | ?????????????????# #?????????????? | | ?????????????????# ########??????? | | ?????????????????# # #??????? | | ?????????????????# # """ #######? | | ?????????????????# # """ # #? | | ?????????????????# # """ # #? | | ?????????????????# # #T #? | | ?????????????????# # ## #?? | | ?????????????????# %%####s#####+##?? | | ?????????????????# %kY@ssr #??? | | ?????????????????##########r #??? | | ??????????????????????????# #??? | | ??????????????????????????# #??? | | ??????????????????????????# #??? | | ?????????????????########## #??? | | ??????????######?# #??? | | ????????? """?# ###### #??? | | ???????# """ # #????# #??? | | ???????# """ # #????# #??? | | ???????# + # ??# #??? | | ???????# ]| # # # #??? | | ???????# | # # + #??? | | ???????# "Y"?# # # #??? | | ???????# """?# # ??## #??? | | ???????# ######??# #?????# ##?? | | ?????????????????# #?????# #?? | | ?????????????????# #?????# #?? | | ?????????????????# #######/### #?? | | ?????????????????# # ##+###? | | ?????????????????# #[ #T #? | | ???????????????### # ### ##? | | ???????????????#"" # ##! !#? | | ???????????????#T + ##! !#? | | ???????????????### # """ """ ##! !#? | +----------------------------------------------------+ Best States ------------- Heat Dissipation 28 Energy Generation 10 Energy Capacity 250 Matter Stores 292 Matter Capacity 300 Sight Range 16 Terrain Scan Range 16 Terrain Scan Density 10 Additional Mass Support 6 Evasion (%) 63 Item Schematics ----------------- None Robot Schematics ------------------ None Fabricated ------------ Nothing Repaired ---------- Nothing Studied --------- None Alien Tech Used ----------------- None Achievements -------------- None Challenges ------------ None Game ------ Seed ArcsightThrusterCanceller Manual? 0 Play Time 00:22:02 Cumulative 45.7 hours Start 2026.07.26 @ 16:32:44 End 2026.07.26 @ 17:05:03 Sessions 1 Manual Loads 0 Difficulty Rogue Special Mode None Game No. 81 Rogue 79 Adventurer 0 Explorer 2 Win Type - Total 0 Types 0/0/0/0/0/0/0/0/0/0 Lore% 25 Gallery% 28 Achievement% 20 Wizard Run 0 Options --------- Layout 1 ASCII 0 Keyboard 0 Movement Mouse Keybinds 0 Fullscreen 1 Font 24/Smallcaps Map View 50x35 Zoom Use 0% Tactical HUD 0 Map Filters NONE Filters NONE Steam 1 RUN: 8dc208c7-950b-4fb7-b592-0767e9a24eeb